fUSD/lending_fUSD_20260420
["ID","MTS","AMOUNT","RATE_DAILY","PERIOD"]
[420864513,1776667833030,-5.99968423,9.294e-05,2]
[420864514,1776667833048,-287.06431718,9.294e-05,2]
[420864515,1776667833060,-206.93599859,9.294e-05,2]
[420864516,1776667833069,-500.0,9.294e-05,2]
[420864517,1776667833079,-187.99968423,9.294e-05,2]
[420864518,1776667833095,-312.00031577,9.294e-05,2]
[420864519,1776667833104,-256.46316778,9.294e-05,2]
[420864556,1776667840325,-243.53683222,9.294e-05,2]
[420864557,1776667840334,-500.0,9.294e-05,2]
[420864558,1776667840344,-500.0,9.294e-05,2]
[420864560,1776667840353,-500.0,9.294e-05,2]
[420864562,1776667840362,-500.0,9.294e-05,2]
[420864563,1776667840371,-500.0,9.294e-05,2]
[420864564,1776667840380,-500.0,9.294e-05,2]
[420864565,1776667840390,-500.0,9.294e-05,2]
[420864566,1776667840399,-500.0,9.294e-05,2]
[420864567,1776667840408,-428.83660497,9.294e-05,2]
[420864568,1776667840430,-71.16339503,9.294e-05,2]
[420864569,1776667840439,-500.0,9.294e-05,2]
[420864570,1776667840449,-500.0,9.294e-05,2]
[420864571,1776667840458,-500.0,9.294e-05,2]
[420864572,1776667840472,-500.0,9.294e-05,2]
[420864573,1776667840482,-500.0,9.294e-05,2]
[420864574,1776667840491,-500.0,9.294e-05,2]
[420864575,1776667840500,-909.04752479,9.294e-05,2]
[420864576,1776667840512,-1884.13741114,9.294e-05,2]
[420864577,1776667840650,-4233.0,9.02e-05,2]
[420864578,1776667840659,-7092.89506407,9.294e-05,2]
[420864579,1776667840668,-435.9,9.294e-05,2]
[420864580,1776667840678,-499.99,9.294e-05,2]
[420864581,1776667840687,-150.99,9.294e-05,2]
[420864582,1776667840696,-2150.96934737,9.294e-05,2]
[420864583,1776667840708,-7849.02065263,9.294e-05,2]
[420864584,1776667840717,-250.0,9.294e-05,2]
[420864585,1776667840727,-380.52740526,9.294e-05,2]
[420864586,1776667840736,-24321.25194211,9.295e-05,2]
[420864587,1776667840752,-358.9418466,9.295e-05,2]
[420864588,1776667840775,-56979.28040938,9.295e-05,2]
[420864589,1776667840787,-2075.70576896,9.295e-05,2]
[420864590,1776667840798,-1810.91461116,9.295e-05,2]
[420864591,1776667840824,-1407.52319047,9.295e-05,2]
[420864605,1776667845659,-500.0,9.294e-05,2]
[420864606,1776667845669,-1122.53665363,9.295e-05,2]
[420864607,1776667845680,-7490.42372197,9.295e-05,2]
[420864613,1776667845938,-1179.15927699,9.295e-05,2]
[420864614,1776667846070,-481.3395008,9.295e-05,2]
[420864615,1776667846082,-732.23943309,9.295e-05,2]
[420864628,1776667846206,-2048.75692861,9.295e-05,2]
[420864640,1776667846313,-10959.4757099,9.295e-05,2]
[420864648,1776667846371,-397034.020781,9.295e-05,2]
[420864681,1776667920194,19120.89165515,0.000165,30]
[420864686,1776668542629,162.9,8.727e-05,2]
[420864688,1776668622382,200.0,8.349e-05,2]
[420864689,1776668680728,163.21,8.219e-05,2]
[420864690,1776668680932,163.21,8.676e-05,2]
[420864691,1776669002639,1182.21836917,8.164e-05,2]
[420864692,1776669002662,10000.01,8.164e-05,2]
[420864693,1776669002687,10000.01,8.164e-05,2]
[420864694,1776669002711,1295.24163083,8.164e-05,2]
[420864697,1776669031747,-494.97495455,8.992e-05,2]
[420864698,1776669031800,-705.02504545,8.992e-05,2]
[420864699,1776669031810,-252.68510622,8.992e-05,2]
[420864700,1776669031820,-193.0,8.992e-05,2]
[420864701,1776669031829,-473.2109,8.993e-05,2]
[420864702,1776669031839,-300.0,8.993e-05,2]
[420864703,1776669031848,-193.0,8.993e-05,2]
[420864704,1776669031858,-6502.75756794,8.994e-05,2]
[420864705,1776669031870,-753.08345875,8.994e-05,2]
[420864706,1776669031908,-780.59413009,8.994e-05,2]
[420864707,1776669031918,-150.0,8.994e-05,2]
[420864708,1776669031928,-408.38105993,8.995e-05,2]
[420864709,1776669031940,-273.08417687,8.995e-05,2]
[420864710,1776669031952,-396.3022,8.995e-05,2]
[420864711,1776669031971,-310.55827694,8.995e-05,2]
[420864712,1776669031983,-334.02485,8.995e-05,2]
[420864713,1776669031995,-550.81504,8.995e-05,2]
[420864752,1776669039375,-373.31089601,8.995e-05,2]
[420864753,1776669039414,-3977.17419144,8.995e-05,2]
[420864754,1776669039426,-76785.85330384,8.995e-05,2]
[420864755,1776669039438,-806.63540497,8.995e-05,2]
[420864756,1776669039447,-2500.0,8.995e-05,2]
[420864757,1776669039456,-500.0,8.999e-05,2]
[420864758,1776669039465,-500.0,8.999e-05,2]
[420864759,1776669039474,-500.0,8.999e-05,2]
[420864760,1776669039483,-500.0,8.999e-05,2]
[420864761,1776669039493,-500.0,8.999e-05,2]
[420864762,1776669039502,-500.0,8.999e-05,2]
[420864763,1776669039511,-500.0,8.999e-05,2]
[420864764,1776669039520,-500.0,8.999e-05,2]
[420864765,1776669039530,-500.0,8.999e-05,2]
[420864766,1776669039539,-500.0,8.999e-05,2]
[420864767,1776669039548,-500.0,8.999e-05,2]
[420864768,1776669039558,-500.0,8.999e-05,2]
[420864769,1776669039567,-500.0,8.999e-05,2]
[420864770,1776669039577,-500.0,8.999e-05,2]
[420864771,1776669039586,-500.0,8.999e-05,2]
[420864772,1776669039596,-500.0,8.999e-05,2]
[420864773,1776669039605,-500.0,8.999e-05,2]
[420864774,1776669039614,-500.0,8.999e-05,2]
[420864775,1776669039623,-319.75898459,8.999e-05,2]
[420864776,1776669039632,-500.0,8.999e-05,2]
[420864777,1776669039641,-500.0,8.999e-05,2]
[420864778,1776669039651,-500.0,8.999e-05,2]
[420864779,1776669039660,-500.0,8.999e-05,2]
[420864780,1776669039669,-500.0,8.999e-05,2]
[420864781,1776669039679,-500.0,8.999e-05,2]
[420864782,1776669039687,-500.0,8.999e-05,2]
[420864783,1776669039697,-500.0,8.999e-05,2]
[420864784,1776669039706,-500.0,8.999e-05,2]
[420864785,1776669039716,-500.0,8.999e-05,2]
[420864786,1776669039725,-500.0,8.999e-05,2]
[420864787,1776669039735,-500.0,8.999e-05,2]
[420864788,1776669039744,-28154.94767459,9e-05,3]
[420864789,1776669039755,-1884.13741114,9e-05,3]
[420864790,1776669039984,-688.8580236,9e-05,3]
[420864791,1776669040039,-117208.32509041,9e-05,3]
[420864792,1776669040049,-409.0,9.033e-05,2]
[420864793,1776669040058,-409.0,9.084e-05,2]
[420864794,1776669040068,-1270.19,9.093e-05,2]
[420864795,1776669040078,-999.99,9.093e-05,2]
[420864796,1776669040087,-3003.62,9.093e-05,2]
[420864797,1776669040096,-9999.99,9.093e-05,2]
[420864798,1776669040105,-500.0,9.094e-05,2]
[420864799,1776669040114,-500.0,9.094e-05,2]
[420864800,1776669040123,-500.0,9.094e-05,2]
[420864801,1776669040132,-151.31577195,9.094e-05,2]
[420864802,1776669040141,-580.03716338,9.094e-05,2]
[420864803,1776669040151,-258.00035616,9.094e-05,2]
[420864804,1776669040159,-500.0,9.094e-05,2]
[420864805,1776669040169,-154402.6166,9.095e-05,2]
[420864806,1776669040178,-409.0,9.096e-05,2]
[420864807,1776669040187,-409.0,9.109e-05,2]
[420864808,1776669040196,-4057.0,9.12e-05,2]
[420864809,1776669040205,-409.0,9.128e-05,2]
[420864810,1776669040215,-409.0,9.128e-05,2]
[420864811,1776669040224,-163.21,9.132e-05,2]
[420864812,1776669040233,-409.0,9.147e-05,2]
[420864813,1776669040242,-409.0,9.161e-05,2]
[420864814,1776669040251,-409.0,9.162e-05,2]
[420864815,1776669040261,-409.0,9.166e-05,2]
[420864816,1776669040270,-409.0,9.168e-05,2]
[420864817,1776669040279,-500.0,9.173e-05,2]
[420864818,1776669040288,-500.0,9.173e-05,2]
[420864819,1776669040298,-500.0,9.173e-05,2]
[420864820,1776669040307,-500.0,9.173e-05,2]
[420864821,1776669040317,-409.0,9.179e-05,2]
[420864822,1776669040326,-3212.49,9.192e-05,2]
[420864823,1776669040335,-150.99,9.192e-05,2]
[420864824,1776669040344,-3333.32,9.192e-05,2]
[420864825,1776669040354,-8410.2,9.192e-05,2]
[420864826,1776669040363,-4999.99,9.192e-05,2]
[420864827,1776669040372,-250.0,9.192e-05,2]
[420864828,1776669040381,-757879.27719652,9.193e-05,2]
[420864829,1776669040394,-74719.99999995,9.193e-05,2]
[420864830,1776669040455,-644.20590704,9.193e-05,2]
[420864844,1776669042900,-500.0,8.999e-05,2]
[420864845,1776669042910,-291820.86766377,9.193e-05,2]
[420864846,1776669042922,-900.05641542,9.193e-05,2]
[420864847,1776669042954,-2916.0025176,9.193e-05,2]
[420864863,1776669046044,-1216.0,9.193e-05,2]
[420864864,1776669046196,-1803.532,9.193e-05,2]
[420864865,1776669046309,-5590.0,9.193e-05,2]
[420864904,1776669052239,3864.2748,8.895e-05,2]
[420864905,1776669094834,3888.0,8.835e-05,2]
[420864906,1776669113750,150.0,8.703e-05,2]
[420864907,1776669118367,2097.7352,8.895e-05,2]
[420864908,1776669118389,1884.4288,8.895e-05,2]
[420864909,1776669130097,8115.5812,7.945e-05,2]
[420864910,1776669130118,10000.01,7.945e-05,2]
[420864911,1776669130139,10000.01,7.945e-05,2]
[420864912,1776669130160,3271.634277,7.945e-05,2]
[420864913,1776669186339,10000.01,8.895e-05,2]
[420864914,1776669186370,475437.07,8.895e-05,2]
[420864915,1776669241164,300.0,8.894e-05,2]
[420864916,1776669257051,1200.0,8.894e-05,2]
[420864917,1776669271639,500.0,8.894e-05,2]
[420864918,1776669271721,256.02601436,8.894e-05,2]
[420864919,1776669272862,500.0,8.894e-05,2]
[420864920,1776669272896,391.07478362,8.894e-05,2]
[420864921,1776669272944,500.0,8.894e-05,2]
[420864922,1776669272982,500.0,8.894e-05,2]
[420864923,1776669273020,500.0,8.894e-05,2]
[420864924,1776669273072,500.0,8.894e-05,2]
[420864925,1776669273110,500.0,8.894e-05,2]
[420864926,1776669273150,500.0,8.894e-05,2]
[420864927,1776669273191,500.0,8.894e-05,2]
[420864928,1776669273229,500.0,8.894e-05,2]
[420864929,1776669273267,500.0,8.894e-05,2]
[420864930,1776669273321,500.0,8.894e-05,2]
[420864931,1776669273367,500.0,8.894e-05,2]
[420864932,1776669273412,500.0,8.894e-05,2]
[420864933,1776669273462,539.81385499,8.894e-05,2]
[420864934,1776669273502,313.09534703,8.894e-05,2]
[420864935,1776669273530,186.90465297,8.894e-05,2]
[420864936,1776669273572,500.0,8.894e-05,2]
[420864937,1776669296529,500.0,8.894e-05,2]
[420864938,1776669296565,500.0,8.894e-05,2]
[420864939,1776669296600,500.0,8.894e-05,2]
[420864940,1776669296638,500.0,8.894e-05,2]
[420864941,1776669296673,500.0,8.894e-05,2]
[420864942,1776669296713,500.0,8.894e-05,2]
[420864943,1776669296747,500.0,8.894e-05,2]
[420864944,1776669296782,500.0,8.894e-05,2]
[420864945,1776669296820,500.0,8.894e-05,2]
[420864946,1776669296857,500.0,8.894e-05,2]
[420864947,1776669296891,500.0,8.894e-05,2]
[420864948,1776669296925,500.0,8.894e-05,2]
[420864949,1776669296961,500.0,8.894e-05,2]
[420864950,1776669297001,287.78308613,8.894e-05,2]
[420864951,1776669297042,500.0,8.894e-05,2]
[420864952,1776669297080,500.0,8.894e-05,2]
[420864953,1776669297122,500.0,8.894e-05,2]
[420864954,1776669297181,500.0,8.894e-05,2]
[420864955,1776669297230,500.0,8.894e-05,2]
[420864956,1776669297282,25.3222609,8.894e-05,2]
[420864957,1776669297310,474.6777391,8.894e-05,2]
[420864958,1776669297344,500.0,8.894e-05,2]
[420864959,1776669297389,500.0,8.894e-05,2]
[420864960,1776669297445,500.0,8.894e-05,2]
[420864961,1776669297484,500.0,8.894e-05,2]
[420864962,1776669297550,500.0,8.894e-05,2]
[420864963,1776669297658,500.0,8.894e-05,2]
[420864964,1776669297718,500.0,8.894e-05,2]
[420864965,1776669314041,-150.0,8.595e-05,2]
[420864966,1776669441260,150.0,0.00011233,120]
[420864967,1776669633943,166.66,8.369e-05,2]
[420864968,1776669646072,-166.66,8.646e-05,2]
[420864969,1776669701250,-270.8361175,8.717e-05,2]
[420864980,1776669922199,150.0,8.162e-05,2]
[420864981,1776669922270,150.0,8.615e-05,2]
[420864982,1776669946549,150.0,8.162e-05,2]
[420864983,1776669946585,150.0,8.162e-05,2]
[420864984,1776669972417,1061.26,8.051e-05,2]
[420864986,1776670063149,1063.18,8.051e-05,2]
[420864988,1776670088835,6942.25,8.051e-05,2]
[420864989,1776670088857,10000.01,8.051e-05,2]
[420864990,1776670088880,4930.25,8.051e-05,2]
[420864991,1776670122487,150.0,8.415e-05,2]
[420864992,1776670127652,-300.0,8.714e-05,2]
[420864993,1776670127683,-247.0,8.714e-05,2]
[420864994,1776670127713,-300.0,8.715e-05,2]
[420864995,1776670127742,-300.0,8.715e-05,2]
[420864996,1776670127775,-1200.0,8.715e-05,2]
[420864997,1776670127804,-300.0,8.715e-05,2]
[420864998,1776670127834,-150.0,8.715e-05,2]
[420864999,1776670127862,-195.52411365,8.716e-05,2]
[420865000,1776670128639,-286.50030941,8.716e-05,2]
[420865001,1776670129644,-4713.49969059,8.716e-05,2]
[420865002,1776670129674,-250.0,8.717e-05,2]
[420865003,1776670132828,-4007.1438825,8.717e-05,2]
[420865004,1776670132859,-215.394,8.717e-05,2]
[420865005,1776670145118,-5000.0,8.766e-05,2]
[420865006,1776670145853,-227.0,8.765e-05,2]
[420865007,1776670145877,-16.41394637,8.765e-05,2]
[420865009,1776670166604,587.45,8.096e-05,2]
[420865011,1776670172100,2419.47,8.219e-05,2]
[420865012,1776670198780,150.0,8.482e-05,2]
[420865013,1776670200772,1218.74,8.219e-05,2]
[420865027,1776670231975,-313160.2343,8.695e-05,2]
[420865028,1776670231985,-245.0,8.765e-05,2]
[420865029,1776670231994,-5000.0,8.772e-05,2]
[420865030,1776670232006,-250.0,8.78e-05,2]
[420865031,1776670232016,-300.0,8.794e-05,2]
[420865032,1776670232025,-300.0,8.794e-05,2]
[420865033,1776670232035,-1200.0,8.794e-05,2]
[420865034,1776670232044,-300.0,8.794e-05,2]
[420865035,1776670232054,-150.0,8.794e-05,2]
[420865036,1776670232064,-77592.4887,8.795e-05,2]
[420865037,1776670232073,-375.5876,8.795e-05,2]
[420865038,1776670232082,-4005.99334283,8.804e-05,2]
[420865039,1776670232092,-150.0,8.888e-05,21]
[420865040,1776670232101,-150.0,8.888e-05,21]
[420865041,1776670232110,-3572.0,8.894e-05,2]
[420865042,1776670232119,-500.0,8.894e-05,2]
[420865043,1776670232129,-541.74777392,8.894e-05,2]
[420865044,1776670232138,-500.0,8.894e-05,2]
[420865045,1776670232147,-500.0,8.894e-05,2]
[420865046,1776670232157,-500.0,8.894e-05,2]
[420865047,1776670232166,-500.0,8.894e-05,2]
[420865048,1776670232175,-500.0,8.894e-05,2]
[420865049,1776670232185,-500.0,8.894e-05,2]
[420865050,1776670232195,-500.0,8.894e-05,2]
[420865051,1776670232204,-500.0,8.894e-05,2]
[420865052,1776670232214,-500.0,8.894e-05,2]
[420865053,1776670232223,-500.0,8.894e-05,2]
[420865054,1776670232232,-500.0,8.894e-05,2]
[420865055,1776670232242,-265.87192947,8.894e-05,2]
[420865056,1776670232252,-500.0,8.894e-05,2]
[420865057,1776670232261,-500.0,8.894e-05,2]
[420865058,1776670232271,-500.0,8.894e-05,2]
[420865059,1776670232280,-500.0,8.894e-05,2]
[420865060,1776670232289,-500.0,8.894e-05,2]
[420865061,1776670232299,-500.0,8.894e-05,2]
[420865062,1776670232313,-500.0,8.894e-05,2]
[420865063,1776670232323,-500.0,8.894e-05,2]
[420865064,1776670232332,-177.03734808,8.894e-05,2]
[420865065,1776670232342,-299.99,8.894e-05,2]
[420865067,1776670232353,-9999.99,8.894e-05,2]
[420865069,1776670232363,-250.0,8.894e-05,2]
[420865071,1776670232372,-158.0,8.894e-05,3]
[420865072,1776670232382,-155.0,8.894e-05,3]
[420865074,1776670232391,-150.0,8.895e-05,21]
[420865076,1776670232400,-150.0,8.895e-05,21]
[420865078,1776670232410,-19269.39,8.895e-05,2]
[420865080,1776670232419,-5992.21,8.895e-05,2]
[420865082,1776670232428,-6542.32959728,8.895e-05,2]
[420865085,1776670232438,-945.97189863,8.895e-05,2]
[420865087,1776670232448,-150.0,8.895e-05,2]
[420865089,1776670232457,-166.66,8.922e-05,2]
[420865091,1776670232466,-742.57605003,8.985e-05,2]
[420865093,1776670232476,-8052.6913,8.995e-05,2]
[420865095,1776670232485,-151.0,8.997e-05,2]
[420865097,1776670232494,-174.38,9.003e-05,2]
[420865099,1776670232505,-150.00000001,9.068e-05,2]
[420865101,1776670232514,-500.0,9.073e-05,2]
[420865103,1776670232523,-500.0,9.073e-05,2]
[420865105,1776670232533,-211.39959994,9.073e-05,2]
[420865107,1776670232542,-500.0,9.073e-05,2]
[420865109,1776670232552,-500.0,9.073e-05,2]
[420865111,1776670232561,-500.0,9.073e-05,2]
[420865113,1776670232571,-316.77936515,9.073e-05,2]
[420865114,1776670232581,-500.0,9.073e-05,2]
[420865115,1776670232590,-500.0,9.073e-05,2]
[420865116,1776670232599,-500.0,9.073e-05,2]
[420865117,1776670232609,-294.95,9.082e-05,2]
[420865118,1776670232619,-151.0,9.092e-05,2]
[420865119,1776670232628,-408324.95194787,9.093e-05,2]
[420865120,1776670232641,-3153.61782708,9.093e-05,2]
[420865121,1776670232653,-11311.37219211,9.093e-05,2]
[420865122,1776670232664,-31151.25631024,9.093e-05,2]
[420865123,1776670232683,-760.0,9.093e-05,2]
[420865124,1776670232702,-547.70912,9.093e-05,2]
[420865128,1776670238467,-169795.63565147,9.093e-05,2]
[420865129,1776670238486,-1482.36647638,9.093e-05,2]
[420865130,1776670238498,-2381.75686885,9.093e-05,2]
[420865131,1776670238513,-507.71285999,9.093e-05,2]
[420865132,1776670238524,-212291.8,9.093e-05,2]
[420865133,1776670238544,-14165.27321156,9.093e-05,2]
[420865134,1776670238583,-76785.85330384,9.093e-05,2]
[420865135,1776670238595,-46781.34206415,9.093e-05,2]
[420865136,1776670238614,-1884.13741114,9.093e-05,2]
[420865137,1776670238681,-4012.72469182,9.093e-05,2]
[420865157,1776670240184,-151.0,8.892e-05,2]
[420865158,1776670240195,-151.0,9.09e-05,2]
[420865159,1776670240204,-246803.87365128,9.093e-05,2]
[420865160,1776670240240,-401.9924952,9.093e-05,2]
[420865161,1776670240453,-5303.89376098,9.093e-05,2]
[420865164,1776670241579,1600.0,8.227e-05,2]
[420865175,1776670243144,-614.29804089,9.093e-05,2]
[420865176,1776670243252,-300.0,9.093e-05,2]
[420865177,1776670243307,-471.55986978,9.093e-05,2]
[420865178,1776670243366,-107269.99094537,9.093e-05,2]
[420865179,1776670243376,-764.73607346,9.109e-05,2]
[420865180,1776670243385,-151.0,9.117e-05,2]
[420865181,1776670243394,-1223.0,9.122e-05,2]
[420865182,1776670243404,-421.0,9.122e-05,2]
[420865183,1776670243413,-1790.0,9.14e-05,2]
[420865184,1776670243423,-481.1459745,9.14e-05,2]
[420865185,1776670243432,-314.0,9.159e-05,2]
[420865186,1776670243443,-63061.0877314,9.162e-05,2]
[420865187,1776670243452,-413.72052146,9.163e-05,2]
[420865188,1776670243461,-1328.27659266,9.163e-05,2]
[420865189,1776670243471,-500.0,9.163e-05,2]
[420865190,1776670243480,-174.61919141,9.163e-05,2]
[420865191,1776670243490,-224.27497423,9.163e-05,2]
[420865192,1776670243499,-194.72792766,9.163e-05,2]
[420865193,1776670243510,-500.0,9.165e-05,2]
[420865194,1776670243519,-8297.9765518,9.165e-05,2]
[420865195,1776670243529,-205989.2485522,9.165e-05,2]
[420865197,1776670243539,-64755.0300663,9.165e-05,2]
[420865198,1776670243548,-151.0,9.165e-05,2]
[420865199,1776670243558,-1500.0,9.165e-05,2]
[420865200,1776670243567,-1500.0,9.165e-05,2]
[420865201,1776670243576,-1500.0,9.165e-05,2]
[420865202,1776670243586,-1500.0,9.165e-05,2]
[420865203,1776670243596,-1500.0,9.165e-05,2]
[420865204,1776670243605,-1500.0,9.165e-05,2]
[420865205,1776670243615,-1500.0,9.165e-05,2]
[420865206,1776670243624,-1500.0,9.165e-05,2]
[420865207,1776670243633,-1500.0,9.165e-05,2]
[420865208,1776670243642,-1500.0,9.165e-05,2]
[420865209,1776670243652,-1500.0,9.165e-05,2]
[420865210,1776670243661,-1500.0,9.165e-05,2]
[420865211,1776670243671,-1500.0,9.165e-05,2]
[420865212,1776670243680,-1500.0,9.165e-05,2]
[420865213,1776670243690,-1500.0,9.165e-05,2]
[420865214,1776670243699,-1500.0,9.165e-05,2]
[420865215,1776670243708,-1500.0,9.165e-05,2]
[420865216,1776670243717,-1500.0,9.165e-05,2]
[420865217,1776670243727,-1500.0,9.165e-05,2]
[420865218,1776670243737,-1500.0,9.165e-05,2]
[420865219,1776670243747,-1500.0,9.165e-05,2]
[420865220,1776670243757,-1500.0,9.165e-05,2]
[420865221,1776670243766,-1500.0,9.165e-05,2]
[420865222,1776670243775,-948.171183,9.165e-05,2]
[420865223,1776670243785,-151.0,9.165e-05,2]
[420865224,1776670243795,-179.452209,9.165e-05,2]
[420865225,1776670243804,-151.0,9.165e-05,2]
[420865226,1776670243813,-7352.34714158,9.165e-05,2]
[420865227,1776670243823,-1001.0,9.177e-05,2]
[420865228,1776670243832,-557.0,9.178e-05,2]
[420865229,1776670244293,-151.0,9.19e-05,2]
[420865230,1776670244328,-151.0,9.19e-05,2]
[420865231,1776670244338,-151.96292736,9.193e-05,2]
[420865232,1776670244348,-1150.0,9.195e-05,2]
[420865233,1776670244357,-272.43,9.195e-05,2]
[420865234,1776670244366,-409.0,9.197e-05,2]
[420865235,1776670244376,-166.66,9.198e-05,2]
[420865236,1776670244385,-670.0,9.212e-05,5]
[420865237,1776670244395,-247.0,9.213e-05,2]
[420865238,1776670244404,-427.17296553,9.216e-05,2]
[420865239,1776670244414,-500.0,9.218e-05,2]
[420865240,1776670244424,-409.0,9.233e-05,2]
[420865241,1776670244433,-409.0,9.242e-05,2]
[420865242,1776670244442,-1600.0,9.255e-05,2]
[420865243,1776670244452,-409.0,9.261e-05,2]
[420865244,1776670244462,-613.85009251,9.273e-05,2]
[420865245,1776670244471,-409.0,9.279e-05,2]
[420865246,1776670244480,-237.56,9.282e-05,2]
[420865247,1776670244490,-151.0,9.29e-05,2]
[420865248,1776670244499,-256.45192907,9.29e-05,2]
[420865249,1776670244511,-409.0,9.29e-05,2]
[420865250,1776670244520,-24179.3717207,9.293e-05,2]
[420865251,1776670244529,-151.0,9.293e-05,2]
[420865252,1776670244539,-508.0,9.295e-05,2]
[420865253,1776670244549,-409.0,9.297e-05,2]
[420865254,1776670244559,-151.0,9.301e-05,2]
[420865255,1776670244568,-409.0,9.302e-05,2]
[420865256,1776670244578,-409.0,9.32e-05,2]
[420865257,1776670244587,-409.0,9.322e-05,2]
[420865258,1776670244596,-705.0,9.368e-05,5]
[420865259,1776670244606,-539.0,9.368e-05,5]
[420865260,1776670244615,-500.0,9.439e-05,2]
[420865261,1776670244625,-166.66,9.474e-05,2]
[420865262,1776670244636,-161.0,9.5e-05,2]
[420865263,1776670244646,-161.0,9.5e-05,2]
[420865264,1776670244655,-2000.0,9.517e-05,2]
[420865265,1776670244665,-250.0,9.585e-05,2]
[420865266,1776670244676,-153.049601,9.588e-05,2]
[420865267,1776670244685,-151.0,9.589e-05,2]
[420865268,1776670244695,-163.21,9.589e-05,2]
[420865269,1776670244706,-1004.3459789,9.621e-05,2]
[420865270,1776670244715,-1000.0,9.621e-05,2]
[420865271,1776670244725,-1002.23420435,9.621e-05,2]
[420865272,1776670244734,-1000.0,9.621e-05,2]
[420865273,1776670244743,-250.0,9.625e-05,2]
[420865274,1776670244753,-1210.52876715,9.642e-05,2]
[420865275,1776670244764,-250.0,9.642e-05,2]
[420865276,1776670244774,-193.0,9.642e-05,2]
[420865277,1776670244783,-5000.0,9.642e-05,2]
[420865278,1776670244792,-420.0,9.673e-05,2]
[420865279,1776670244802,-1680.0,9.673e-05,2]
[420865280,1776670244811,-255.0,9.673e-05,2]
[420865281,1776670244820,-263.87247667,9.705e-05,2]
[420865282,1776670244829,-1377.42282659,9.711e-05,2]
[420865283,1776670244838,-181.08010149,9.711e-05,2]
[420865284,1776670244848,-294.49186982,9.711e-05,2]
[420865285,1776670244857,-500.0,9.713e-05,2]
[420865286,1776670244867,-166.66,9.751e-05,2]
[420865287,1776670244876,-155.828,9.783e-05,2]
[420865288,1776670244886,-14448.8002291,9.795e-05,2]
[420865289,1776670244896,-6937.67,9.874e-05,2]
[420865290,1776670244905,-2268.71,9.874e-05,2]
[420865291,1776670244915,-152.548405,9.875e-05,2]
[420865292,1776670244925,-3223.963109,9.936e-05,2]
[420865293,1776670244934,-500.0,9.987e-05,2]
[420865294,1776670244943,-1173.99,0.0001,2]
[420865295,1776670244953,-4209.78660215,0.0001,2]
[420865296,1776670244962,-490.75802685,0.0001,2]
[420865297,1776670244973,-313.79652133,0.0001,2]
[420865298,1776670244982,-2054.0,0.0001,2]
[420865299,1776670244992,-306.47727209,0.0001,2]
[420865300,1776670245002,-718.71,0.0001,2]
[420865301,1776670245013,-290.36011,0.0001,2]
[420865302,1776670245023,-290.36012,0.0001,2]
[420865303,1776670245032,-290.36011,0.0001,2]
[420865304,1776670245042,-290.36012,0.0001,2]
[420865305,1776670245051,-200.0,0.0001,2]
[420865306,1776670245060,-500.0,0.0001,2]
[420865307,1776670245069,-500.0,0.0001,2]
[420865308,1776670245079,-151.0,0.0001,2]
[420865309,1776670245088,-500.0,0.0001,2]
[420865310,1776670245097,-151.0,0.0001,2]
[420865311,1776670245107,-500.0,0.0001,2]
[420865312,1776670245116,-151.0,0.0001,2]
[420865313,1776670245125,-500.0,0.0001,2]
[420865314,1776670245134,-151.0,0.0001,2]
[420865315,1776670245144,-500.0,0.0001,2]
[420865316,1776670245154,-151.0,0.0001,2]
[420865317,1776670245164,-500.0,0.0001,2]
[420865318,1776670245173,-151.0,0.0001,2]
[420865319,1776670245182,-500.0,0.0001,2]
[420865320,1776670245191,-151.0,0.0001,2]
[420865321,1776670245201,-500.0,0.0001,2]
[420865322,1776670245210,-151.0,0.0001,2]
[420865323,1776670245219,-500.0,0.0001,2]
[420865324,1776670245229,-151.0,0.0001,2]
[420865325,1776670245238,-500.0,0.0001,2]
[420865326,1776670245247,-151.0,0.0001,2]
[420865327,1776670245256,-151.0,0.0001,2]